fUST/lending_fUST_20251129
["ID","MTS","AMOUNT","RATE_DAILY","PERIOD"]
[395053269,1764378651486,-500.0,0.00015068,2]
[395053270,1764378651494,-500.0,0.00015068,2]
[395053271,1764378651503,-5765.87,0.00015068,2]
[395053272,1764378651513,-523.48,0.00015068,2]
[395053273,1764378651522,-849.63,0.00015068,2]
[395053274,1764378651531,-807.08,0.00015068,2]
[395053275,1764378651541,-5915.6,0.00015068,2]
[395053276,1764378651550,-1538.47,0.00015068,2]
[395053277,1764378651560,-500.0,0.00015068,2]
[395053278,1764378651570,-1794.85,0.00015068,2]
[395053279,1764378651579,-1700.81,0.00015068,2]
[395053280,1764378651589,-651.36,0.00015068,2]
[395053281,1764378651599,-500.0,0.00015068,2]
[395053282,1764378651608,-1730.66,0.00015068,2]
[395053283,1764378651618,-500.0,0.00015068,2]
[395053284,1764378651627,-628.56,0.00015068,2]
[395053285,1764378651636,-818.28,0.00015068,2]
[395053286,1764378651646,-202.793245,0.00015068,2]
[395053287,1764378651655,-500.0,0.00015074,2]
[395053288,1764378651664,-500.0,0.00015074,2]
[395053289,1764378651674,-500.0,0.00015075,2]
[395053290,1764378651684,-10727.2,0.00015075,2]
[395053291,1764378651693,-1182.8,0.00015075,2]
[395053292,1764378651702,-1999.97,0.00015075,2]
[395053293,1764378651711,-2209.04,0.00015075,2]
[395053294,1764378651721,-500.0,0.00015076,2]
[395053295,1764378651731,-124.26077764,0.00015089,2]
[395053296,1764378653697,-500.0,0.00013893,2]
[395053297,1764378653706,-104.0,0.00013893,2]
[395053298,1764378653719,-183.0331499,0.00013893,2]
[395053299,1764378653728,-583.43092022,0.00013893,2]
[395053300,1764378653738,-669.62,0.00013894,2]
[395053301,1764378653757,-500.0,0.00014168,2]
[395053302,1764378653769,-669.62,0.00014168,2]
[395053303,1764378653779,-500.0,0.00014442,2]
[395053304,1764378653790,-669.62,0.00014442,2]
[395053305,1764378653800,-589.96,0.00014443,2]
[395053306,1764378653811,-500.0,0.00014716,2]
[395053307,1764378653821,-669.62,0.00014716,2]
[395053308,1764378653832,-589.96,0.00014717,2]
[395053309,1764378653842,-500.0,0.0001499,2]
[395053310,1764378653855,-669.62,0.0001499,2]
[395053311,1764378653866,-589.96,0.00014991,2]
[395053312,1764378653876,-258.90914797,0.00015089,2]
[395053313,1764378653890,-151.0,0.00015089,2]
[395053314,1764378653901,-151.0,0.00015089,2]
[395053315,1764378653912,-250.0,0.00015089,2]
[395053316,1764378653926,-500.0,0.00015089,2]
[395053317,1764378653937,-307.587,0.00015089,2]
[395053318,1764378653948,-414.0,0.00015089,2]
[395053319,1764378653958,-596.4632533,0.00015089,2]
[395053320,1764378653968,-151.0,0.00015089,2]
[395053321,1764378653982,-401.0,0.00015089,2]
[395053322,1764378653993,-1750.0,0.00015089,2]
[395053323,1764378654002,-303.00745163,0.00015089,2]
[395053324,1764378654013,-194.72792766,0.00015089,2]
[395053325,1764378654024,-265.88926302,0.00015089,2]
[395053326,1764378654033,-160.60387576,0.00015089,2]
[395053327,1764378654043,-666.0,0.00015089,2]
[395053328,1764378654054,-856.06682355,0.00015121,2]
[395053329,1764378654064,-598.67676608,0.00015127,2]
[395053330,1764378654076,-500.0,0.0001517,2]
[395053331,1764378654086,-641.16,0.00015174,2]
[395053332,1764378654096,-500.0,0.00015174,2]
[395053333,1764378654106,-1037.84,0.00015174,2]
[395053334,1764378654116,-500.0,0.00015174,2]
[395053335,1764378654126,-500.0,0.00015174,2]
[395053336,1764378654136,-500.0,0.00015174,2]
[395053337,1764378654146,-500.0,0.00015174,2]
[395053338,1764378654155,-500.0,0.00015174,2]
[395053339,1764378654165,-1333.63,0.00015174,2]
[395053340,1764378654178,-500.0,0.00015174,2]
[395053341,1764378654188,-500.0,0.00015174,2]
[395053342,1764378654199,-500.0,0.00015174,2]
[395053343,1764378654210,-500.0,0.00015174,2]
[395053344,1764378654220,-500.0,0.00015174,2]
[395053345,1764378654230,-500.0,0.00015174,2]
[395053346,1764378654240,-500.0,0.00015174,2]
[395053347,1764378654251,-500.0,0.00015174,2]
[395053348,1764378654261,-404.16944012,0.00015174,2]
[395053349,1764378654480,-23.44836411,0.00015174,2]
[395053350,1764378654971,-600.99999999,0.00015174,2]
[395053351,1764378654984,-238.62219578,0.00015174,2]
[395053352,1764378654994,-943.76,0.00015174,2]
[395053353,1764378655004,-500.0,0.00015174,2]
[395053354,1764378655013,-500.0,0.00015174,2]
[395053355,1764378655023,-500.0,0.00015174,2]
[395053356,1764378655032,-500.0,0.00015174,2]
[395053357,1764378655041,-642.78,0.00015174,2]
[395053358,1764378655050,-500.0,0.00015174,2]
[395053359,1764378655060,-610.77,0.00015174,2]
[395053360,1764378655070,-1612.79,0.00015174,2]
[395053361,1764378655079,-682.48,0.00015174,2]
[395053362,1764378655090,-500.0,0.00015174,2]
[395053363,1764378655099,-491.23145483,0.00015174,2]
[395053364,1764378734020,2.20352039,8.907e-05,2]
[395053365,1764378734044,261.24395132,8.907e-05,2]
[395053366,1764378734854,263.44747171,0.0001099,2]
[395053367,1764378735350,263.44747171,0.00013073,2]
[395053368,1764378746510,276.05106542,0.00013073,2]
[395053371,1764379297566,1000.0,0.0002,30]
[395053373,1764379537162,-323.81430163,0.00012388,2]
[395053377,1764379627077,-784.78197246,0.00012388,2]
[395053378,1764379627097,-1108.59627409,0.00012513,2]
[395053379,1764379627118,-150.0,0.00012703,2]
[395053380,1764379627138,-256.0,0.00012896,2]
[395053381,1764379627160,-1200.0,0.00013597,2]
[395053382,1764379627181,-36.59037815,0.00013598,2]
[395053383,1764379631114,-670.9012615,0.00013598,2]
[395053384,1764379643072,-242.46709763,0.00013462,2]
[395053385,1764379647291,200.0,0.0002,30]
[395053397,1764379747126,-999.0,0.00012689,2]
[395053398,1764379747147,-150.0,0.00012795,2]
[395053399,1764379747166,-1042.6707,0.000129,2]
[395053400,1764379747185,-275.37082846,0.00012999,2]
[395053401,1764379747207,-99.95185566,0.00013462,2]
[395053402,1764379751087,-191.32985341,0.00013462,2]
[395053403,1764379751112,-2828.1104986,0.00013598,2]
[395053404,1764379756073,-490.0,0.00013598,2]
[395053408,1764379820692,534.54198971,0.00013362,2]
[395053409,1764379820949,719.2,0.0002,30]
[395053414,1764379832197,-700.44318476,0.00013462,2]
[395053415,1764379832208,-1501.37987448,0.00013462,2]
[395053416,1764379832217,-300.0,0.00013672,2]
[395053417,1764379832227,-500.0,0.00013673,2]
[395053418,1764379832236,-619.90072273,0.00013673,2]
[395053419,1764379832245,-500.0,0.00013673,2]
[395053420,1764379832254,-501.91741855,0.00013673,2]
[395053422,1764379832263,-236.46957995,0.00013673,2]
[395053424,1764379832272,-500.99257967,0.00013673,2]
[395053426,1764379832281,-500.0,0.00013673,2]
[395053428,1764379832290,-500.0,0.00013673,2]
[395053431,1764379832299,-230.40245081,0.00013673,2]
[395053434,1764379832309,-194.72792766,0.0001369,2]
[395053437,1764379832317,-432.97224453,0.00013697,2]
[395053440,1764379832326,-227.48926302,0.00013697,2]
[395053443,1764379832335,-500.0,0.00013697,2]
[395053445,1764379832345,-500.0,0.00013697,2]
[395053447,1764379832354,-500.0,0.00013697,2]
[395053449,1764379832363,-595.38616572,0.00013697,2]
[395053451,1764379832371,-500.0,0.00013697,2]
[395053453,1764379832380,-500.0,0.00013697,2]
[395053455,1764379832390,-500.0,0.00013697,2]
[395053456,1764379832398,-500.0,0.00013697,2]
[395053457,1764379832407,-500.0,0.00013697,2]
[395053458,1764379832416,-500.0,0.00013697,2]
[395053459,1764379832425,-500.0,0.00013697,2]
[395053460,1764379832434,-624.86016289,0.00013697,2]
[395053461,1764379832443,-500.0,0.00013697,2]
[395053462,1764379832452,-303.08057117,0.00013697,2]
[395053463,1764379832461,-500.0,0.00013697,2]
[395053464,1764379832470,-166.15758428,0.00013697,2]
[395053465,1764379832479,-500.0,0.00013698,2]
[395053466,1764379832493,-500.0,0.00013698,2]
[395053467,1764379832501,-500.0,0.00013698,2]
[395053468,1764379832511,-500.0,0.00013698,2]
[395053469,1764379832519,-500.0,0.00013698,2]
[395053470,1764379832528,-500.0,0.00013698,2]
[395053471,1764379832538,-500.0,0.00013698,2]
[395053472,1764379832548,-500.0,0.00013698,2]
[395053473,1764379832557,-500.0,0.00013698,2]
[395053474,1764379832566,-500.0,0.00013698,2]
[395053475,1764379832575,-500.0,0.00013698,2]
[395053476,1764379832584,-500.0,0.00013698,2]
[395053477,1764379832594,-500.0,0.00013698,2]
[395053478,1764379832603,-500.0,0.00013698,2]
[395053479,1764379832612,-500.0,0.00013698,2]
[395053480,1764379832622,-500.0,0.00013698,2]
[395053481,1764379832632,-500.0,0.00013698,2]
[395053482,1764379832641,-561.01,0.00013698,2]
[395053483,1764379832650,-500.0,0.00013698,2]
[395053484,1764379832659,-500.0,0.00013698,2]
[395053485,1764379832669,-500.0,0.00013698,2]
[395053486,1764379832678,-1433.83,0.00013698,2]
[395053487,1764379832687,-908.11,0.00013698,2]
[395053488,1764379832696,-500.0,0.00013698,2]
[395053489,1764379832705,-500.0,0.00013698,2]
[395053490,1764379832715,-530.12,0.00013698,2]
[395053491,1764379832724,-500.0,0.00013698,2]
[395053492,1764379832733,-500.0,0.00013698,2]
[395053493,1764379832742,-500.0,0.00013698,2]
[395053494,1764379832751,-500.0,0.00013698,2]
[395053495,1764379832761,-500.0,0.00013698,2]
[395053496,1764379832771,-500.0,0.00013698,2]
[395053497,1764379832780,-500.0,0.00013698,2]
[395053498,1764379832790,-1357.45,0.00013698,2]
[395053499,1764379832799,-500.0,0.00013698,2]
[395053500,1764379832808,-500.0,0.00013698,2]
[395053501,1764379832817,-500.0,0.00013698,2]
[395053502,1764379832827,-500.0,0.00013698,2]
[395053503,1764379832836,-500.0,0.00013698,2]
[395053505,1764379832845,-500.0,0.00013698,2]
[395053506,1764379832853,-500.0,0.00013698,2]
[395053508,1764379832863,-500.0,0.00013698,2]
[395053510,1764379832871,-500.0,0.00013698,2]
[395053512,1764379832880,-500.0,0.00013698,2]
[395053514,1764379832889,-500.0,0.00013698,2]
[395053516,1764379832898,-1037.59,0.00013698,2]
[395053518,1764379832907,-500.0,0.00013698,2]
[395053520,1764379832916,-500.0,0.00013698,2]
[395053522,1764379832925,-500.0,0.00013698,2]
[395053523,1764379832935,-500.0,0.00013698,2]
[395053525,1764379832944,-500.0,0.00013698,2]
[395053527,1764379832953,-618.18,0.00013698,2]
[395053529,1764379832963,-500.0,0.00013698,2]
[395053530,1764379832971,-500.0,0.00013698,2]
[395053531,1764379832981,-500.0,0.00013698,2]
[395053532,1764379832990,-500.0,0.00013698,2]
[395053534,1764379833001,-1108.83,0.00013698,2]
[395053536,1764379833011,-825.79,0.00013698,2]
[395053538,1764379833020,-500.0,0.00013698,2]
[395053539,1764379833029,-500.0,0.00013698,2]
[395053540,1764379833038,-500.0,0.00013698,2]
[395053541,1764379833048,-500.0,0.00013698,2]
[395053543,1764379833057,-500.0,0.00013698,2]
[395053545,1764379833066,-500.0,0.00013698,2]
[395053546,1764379833075,-523.63,0.00013698,2]
[395053547,1764379833084,-500.0,0.00013698,2]
[395053548,1764379833094,-500.0,0.00013698,2]
[395053549,1764379833103,-500.0,0.00013698,2]
[395053550,1764379833112,-500.0,0.00013698,2]
[395053551,1764379833121,-567.44,0.00013698,2]
[395053552,1764379833130,-500.0,0.00013698,2]
[395053553,1764379833140,-500.0,0.00013698,2]
[395053554,1764379833150,-500.0,0.00013698,2]
[395053555,1764379833159,-500.0,0.00013698,2]
[395053556,1764379833168,-1270.13,0.00013698,2]
[395053557,1764379833178,-500.0,0.00013698,2]
[395053558,1764379833187,-506.6,0.00013698,2]
[395053559,1764379833196,-775.04,0.00013698,2]
[395053560,1764379833206,-613.71,0.00013698,2]
[395053561,1764379833215,-500.0,0.00013698,2]
[395053562,1764379833224,-686.52,0.00013698,2]
[395053563,1764379833234,-562.44,0.00013698,2]
[395053564,1764379833242,-500.0,0.00013698,2]
[395053565,1764379833255,-1409.84,0.00013698,2]
[395053566,1764379833264,-826.26,0.00013698,2]
[395053567,1764379833273,-500.0,0.00013698,2]
[395053568,1764379833284,-809.09,0.00013698,2]
[395053569,1764379833293,-500.0,0.00013698,2]
[395053570,1764379833303,-9386.3,0.00013698,2]
[395053571,1764379833312,-500.0,0.00013698,2]
[395053572,1764379833321,-784.82,0.00013698,2]
[395053573,1764379833331,-575.81,0.00013698,2]
[395053574,1764379833340,-500.0,0.00013698,2]
[395053575,1764379833349,-534.42,0.00013698,2]
[395053576,1764379833359,-500.0,0.00013698,2]
[395053577,1764379833368,-500.0,0.00013698,2]
[395053578,1764379833377,-500.0,0.00013698,2]
[395053579,1764379833386,-500.0,0.00013698,2]
[395053580,1764379833395,-1335.39,0.00013698,2]
[395053581,1764379833404,-1201.1,0.00013698,2]
[395053582,1764379833413,-1411.19,0.00013698,2]
[395053583,1764379833422,-500.0,0.00013698,2]
[395053584,1764379833431,-500.0,0.00013698,2]
[395053585,1764379833440,-500.0,0.00013698,2]
[395053586,1764379833449,-580.9,0.00013698,2]
[395053587,1764379833458,-2047.46,0.00013698,2]
[395053588,1764379833467,-500.0,0.00013698,2]
[395053589,1764379833475,-1689.48,0.00013698,2]
[395053590,1764379833485,-1932.91,0.00013698,2]
[395053591,1764379833496,-500.0,0.00013698,2]
[395053592,1764379833505,-500.0,0.00013698,2]
[395053593,1764379833514,-533.85,0.00013698,2]
[395053594,1764379833525,-2106.82,0.00013698,2]
[395053595,1764379833534,-500.0,0.00013698,2]
[395053596,1764379833543,-697.34,0.00013698,2]
[395053597,1764379833552,-500.0,0.00013698,2]
[395053598,1764379833561,-500.0,0.00013698,2]
[395053599,1764379833571,-500.0,0.00013698,2]
[395053600,1764379833581,-500.0,0.00013698,2]
[395053601,1764379833590,-1395.78,0.00013698,2]
[395053602,1764379833599,-500.0,0.00013698,2]
[395053603,1764379833608,-500.0,0.00013698,2]
[395053604,1764379833617,-556.32,0.00013698,2]
[395053605,1764379833626,-577.43,0.00013698,2]
[395053606,1764379833636,-1097.25,0.00013698,2]
[395053607,1764379833646,-2130.84,0.00013698,2]
[395053608,1764379833656,-1266.38,0.00013698,2]
[395053609,1764379833665,-500.0,0.00013698,2]
[395053610,1764379833674,-507.76,0.00013698,2]
[395053611,1764379833683,-311.79091985,0.00013698,2]
[395053612,1764379833697,-531.87524957,0.00013698,2]
[395053613,1764379833709,-1188.84383058,0.00013698,2]
[395053614,1764379833718,-500.0,0.00013698,2]
[395053615,1764379833728,-500.0,0.00013698,2]
[395053616,1764379833737,-1944.06,0.00013698,2]
[395053617,1764379833747,-492.07919742,0.00013698,2]
[395053647,1764379838323,-7.92080258,0.00013698,2]
[395053649,1764379838333,-791.71971432,0.00013698,2]
[395053651,1764379838345,-258.22028568,0.00013698,2]
[395053653,1764379838355,-431.77202517,0.00013698,2]
[395053658,1764379838388,-1304.07797483,0.00013698,2]
[395053660,1764379838397,-597.17,0.00013698,2]
[395053662,1764379838406,-884.1,0.00013698,2]
[395053664,1764379838415,-500.0,0.00013698,2]
[395053666,1764379838424,-500.0,0.00013698,2]
[395053668,1764379838433,-3063.99,0.00013698,2]
[395053670,1764379838443,-500.0,0.00013698,2]
[395053672,1764379838452,-500.0,0.00013698,2]
[395053674,1764379838461,-500.0,0.00013698,2]
[395053676,1764379838470,-391.2223816,0.00013698,2]
[395053710,1764379840339,-774.1076184,0.00013698,2]
[395053711,1764379840349,-325.324283,0.00013698,2]
[395053712,1764379840602,-0.71449966,0.00013698,2]
[395053713,1764379840615,-173.96121734,0.00013698,2]
[395053714,1764379840625,-736.05,0.00013698,2]
[395053715,1764379840636,-500.0,0.00013698,2]
[395053716,1764379840645,-500.0,0.00013698,2]
[395053717,1764379840655,-1362.35,0.00013698,2]
[395053718,1764379840665,-500.0,0.00013698,2]
[395053719,1764379840674,-500.0,0.00013698,2]
[395053720,1764379840683,-795.98,0.00013698,2]
[395053721,1764379840692,-500.0,0.00013698,2]
[395053722,1764379840702,-500.0,0.00013698,2]
[395053723,1764379840712,-500.0,0.00013698,2]
[395053724,1764379840721,-578.93,0.00013698,2]
[395053725,1764379840731,-500.0,0.00013698,2]
[395053726,1764379840741,-637.22,0.00013698,2]
[395053727,1764379840751,-500.0,0.00013698,2]
[395053728,1764379840761,-372.14207566,0.00013698,2]
[395053729,1764379840773,-127.85792434,0.00013698,2]
[395053730,1764379840782,-500.0,0.00013698,2]
[395053731,1764379840791,-500.0,0.00013698,2]
[395053732,1764379840800,-500.0,0.00013698,2]
[395053733,1764379840809,-501.07,0.00013698,2]
[395053734,1764379840818,-500.0,0.00013698,2]
[395053735,1764379840827,-500.0,0.00013698,2]
[395053736,1764379840836,-731.18,0.00013698,2]
[395053737,1764379840845,-1153.85,0.00013698,2]
[395053738,1764379840854,-605.31,0.00013698,2]
[395053739,1764379840864,-500.0,0.00013698,2]
[395053740,1764379840873,-500.0,0.00013698,2]
[395053741,1764379840882,-500.0,0.00013698,2]
[395053742,1764379840892,-4324.4,0.00013698,2]
[395053743,1764379840902,-1609.18,0.00013698,2]
[395053744,1764379840911,-511.16,0.00013698,2]
[395053745,1764379840921,-2380.44,0.00013698,2]
[395053746,1764379840930,-572.33,0.00013698,2]
[395053747,1764379840939,-500.0,0.00013698,2]
[395053748,1764379840948,-500.0,0.00013698,2]
[395053749,1764379840957,-2241.12,0.00013698,2]
[395053750,1764379840967,-4436.7,0.00013698,2]
[395053751,1764379840976,-500.0,0.00013698,2]
[395053752,1764379840986,-947.26,0.00013698,2]
[395053753,1764379840995,-427.2740825,0.00013698,2]
[395053757,1764379843346,-72.7259175,0.00013698,2]
[395053758,1764379843356,-427.69265042,0.00013698,2]
[395053759,1764379843368,-72.30734958,0.00013698,2]
[395053760,1764379843377,-500.0,0.00013698,2]
[395053761,1764379843386,-502.15,0.00013698,2]
[395053762,1764379843395,-500.0,0.00013698,2]
[395053763,1764379843405,-500.0,0.00013698,2]
[395053764,1764379843414,-1394.32,0.00013698,2]
[395053765,1764379843423,-500.0,0.00013698,2]
[395053766,1764379843432,-500.0,0.00013698,2]
[395053767,1764379843441,-1035.67,0.00013698,2]
[395053768,1764379843450,-500.0,0.00013698,2]
[395053769,1764379843459,-500.0,0.00013698,2]
[395053770,1764379843468,-500.0,0.00013698,2]
[395053771,1764379843476,-500.0,0.00013698,2]
[395053772,1764379843485,-502.84349907,0.00013698,2]
[395053773,1764379843499,-1276.07,0.00013698,2]
[395053774,1764379843508,-500.0,0.00013698,2]
[395053775,1764379843517,-500.0,0.00013698,2]
[395053776,1764379843526,-500.0,0.00013698,2]
[395053777,1764379843536,-500.0,0.00013698,2]
[395053778,1764379843545,-662.75,0.00013698,2]
[395053779,1764379843554,-500.0,0.00013698,2]
[395053780,1764379843563,-500.0,0.00013698,2]
[395053781,1764379843572,-500.0,0.00013698,2]
[395053782,1764379843581,-500.0,0.00013698,2]
[395053783,1764379843591,-500.0,0.00013698,2]
[395053784,1764379843600,-1301.59,0.00013698,2]
[395053785,1764379843609,-163.8426756,0.00013698,2]
[395053786,1764379843619,-489.64758973,0.00013698,2]
[395053787,1764379843628,-500.0,0.00013698,2]
[395053788,1764379843637,-286.59100136,0.00013698,2]
[395053789,1764379843646,-1750.23,0.00013698,2]
[395053790,1764379843655,-500.0,0.00013698,2]
[395053791,1764379843665,-500.0,0.00013698,2]
[395053792,1764379843674,-500.0,0.00013698,2]
[395053793,1764379843683,-500.0,0.00013698,2]
[395053795,1764379843693,-975.35,0.00013698,2]
[395053797,1764379843703,-1218.34,0.00013698,2]
[395053798,1764379843712,-361.58393606,0.00013698,2]
[395053800,1764379843726,-1035.79007213,0.00013698,2]
[395053801,1764379843738,-460.68599181,0.00013698,2]
[395053802,1764379843748,-500.0,0.00013698,2]
[395053803,1764379843758,-1361.58,0.00013698,2]
[395053804,1764379843768,-1225.95,0.00013698,2]
[395053805,1764379843778,-757.72,0.00013698,2]
[395053806,1764379843788,-500.0,0.00013698,2]
[395053807,1764379843798,-613.47677723,0.00013699,2]
[395053808,1764379843850,-572.52873677,0.00013699,2]
[395053809,1764379843860,-750.0,0.00013699,2]
[395053810,1764379843869,-343.3204286,0.00013699,2]
[395053811,1764379843879,-500.0,0.00013894,2]
[395053812,1764379843890,-500.0,0.00013894,2]
[395053813,1764379843901,-500.0,0.00013894,2]
[395053814,1764379843911,-500.0,0.00013894,2]
[395053815,1764379843921,-500.0,0.00013894,2]
[395053816,1764379843930,-500.0,0.00013894,2]
[395053817,1764379843939,-500.0,0.00013894,2]
[395053818,1764379843948,-500.0,0.00013894,2]
[395053819,1764379843958,-500.0,0.00013894,2]
[395053820,1764379843967,-500.0,0.00013894,2]
[395053821,1764379843977,-500.0,0.00013894,2]
[395053822,1764379843986,-512.87,0.00013894,2]
[395053823,1764379843996,-1151.05,0.00013894,2]
[395053824,1764379844006,-836.02,0.00013894,2]
[395053825,1764379844015,-500.0,0.00013894,2]
[395053826,1764379844024,-500.0,0.00013894,2]
[395053827,1764379844034,-500.0,0.00013894,2]
[395053828,1764379844043,-500.0,0.00013894,2]
[395053829,1764379844052,-208.88856923,0.00013894,2]
[395053846,1764379846319,-1375.17,0.00013698,2]
[395053848,1764379846329,-500.0,0.00013698,2]
[395053850,1764379846339,-340.89360867,0.00013894,2]
[395053852,1764379846348,-500.0,0.00013894,2]
[395053854,1764379846359,-500.0,0.00013894,2]
[395053856,1764379846368,-500.0,0.00013894,2]
[395053858,1764379846377,-500.0,0.00013894,2]
[395053860,1764379846386,-500.0,0.00013894,2]
[395053862,1764379846396,-500.0,0.00013894,2]
[395053864,1764379846406,-500.0,0.00013894,2]
[395053866,1764379846416,-500.0,0.00013894,2]
[395053868,1764379846425,-500.0,0.00013894,2]
[395053870,1764379846435,-1149.66,0.00013894,2]
[395053872,1764379846445,-516.76,0.00013894,2]
[395053874,1764379846454,-500.0,0.00013894,2]
[395053876,1764379846463,-500.0,0.00013894,2]
[395053878,1764379846472,-500.0,0.00013894,2]
[395053880,1764379846482,-397.53726899,0.00013894,2]
[395053882,1764379846492,-622.2,0.00013894,2]
[395053884,1764379846503,-500.0,0.00013894,2]
[395053886,1764379846512,-500.0,0.00013894,2]
[395053888,1764379846521,-500.0,0.00013894,2]
[395053890,1764379846531,-500.0,0.00013894,2]
[395053892,1764379846540,-500.0,0.00013894,2]
[395053894,1764379846549,-500.0,0.00013894,2]
[395053896,1764379846558,-500.0,0.00013894,2]
[395053898,1764379846567,-500.0,0.00013894,2]
[395053900,1764379846576,-500.0,0.00013894,2]
[395053902,1764379846586,-500.0,0.00013894,2]
[395053904,1764379846595,-500.0,0.00013894,2]
[395053906,1764379846604,-500.0,0.00013894,2]
[395053908,1764379846613,-500.0,0.00013894,2]
[395053910,1764379846622,-500.0,0.00013894,2]
[395053912,1764379846631,-500.0,0.00013894,2]
[395053914,1764379846640,-500.0,0.00013894,2]
[395053916,1764379846649,-400.0,0.00013894,2]
[395053918,1764379846658,-500.0,0.00013894,2]
[395053920,1764379846668,-500.0,0.00013894,2]
[395053922,1764379846677,-500.0,0.00013894,2]
[395053924,1764379846686,-500.0,0.00013894,2]
[395053926,1764379846695,-500.0,0.00013894,2]
[395053928,1764379846704,-500.0,0.00013894,2]
[395053930,1764379846713,-500.0,0.00013894,2]
[395053932,1764379846722,-500.0,0.00013894,2]
[395053934,1764379846731,-500.0,0.00013894,2]
[395053936,1764379846739,-500.0,0.00013894,2]
[395053938,1764379846748,-500.0,0.00013894,2]
[395053940,1764379846757,-500.0,0.00013894,2]
[395053942,1764379846767,-500.0,0.00013894,2]
[395053944,1764379846776,-500.0,0.00013894,2]
[395053946,1764379846785,-500.0,0.00013894,2]
[395053947,1764379846794,-500.0,0.00013894,2]
[395053949,1764379846803,-500.0,0.00013894,2]
[395053951,1764379846813,-500.0,0.00013894,2]
[395053953,1764379846823,-500.0,0.00013894,2]
[395053955,1764379846834,-500.0,0.00013894,2]
[395053958,1764379846843,-500.0,0.00013894,2]
[395053960,1764379846854,-487.47980968,0.00013894,2]
[395053962,1764379846864,-565.62,0.00013894,2]
[395053964,1764379846873,-500.0,0.00013894,2]
[395053966,1764379846881,-500.0,0.00013894,2]
[395053968,1764379846891,-506.82,0.00013894,2]
[395053970,1764379846900,-527.96,0.00013894,2]
[395053972,1764379846909,-500.0,0.00013894,2]
[395053974,1764379846919,-500.0,0.00013894,2]
[395053976,1764379846927,-500.0,0.00013894,2]
[395053977,1764379846936,-583.99,0.00013894,2]
[395053979,1764379846945,-500.0,0.00013894,2]
[395053981,1764379846954,-500.0,0.00013894,2]
[395053983,1764379846964,-500.0,0.00013894,2]
[395053986,1764379846974,-500.0,0.00013894,2]
[395053987,1764379846983,-636.04,0.00013894,2]
[395053990,1764379846995,-500.0,0.00013894,2]
[395053991,1764379847004,-500.0,0.00013894,2]
[395053994,1764379847015,-570.28,0.00013894,2]
[395053996,1764379847024,-356.71426285,0.00013894,2]
[395053998,1764379847033,-500.0,0.00013894,2]
[395054000,1764379847042,-500.0,0.00013894,2]
[395054002,1764379847051,-500.0,0.00013894,2]
[395054004,1764379847060,-1773.47,0.00013894,2]
[395054006,1764379847069,-500.0,0.00013894,2]
[395054007,1764379847079,-882.44,0.00013894,2]
[395054010,1764379847090,-573.09,0.00013894,2]
[395054012,1764379847109,-500.0,0.00013894,2]